fUSD/lending_fUSD_20260528
["ID","MTS","AMOUNT","RATE_DAILY","PERIOD"]
[423167814,1779900646000,-585.82824268,0.00034178,2]
[423167800,1779900646000,-381.68311281,0.00034178,2]
[423167802,1779900646000,-500.0,0.00034178,2]
[423167807,1779900646000,-500.0,0.00034178,2]
[423167973,1779900647000,-8791.28614351,0.00034883,2]
[423167966,1779900647000,-250.0,0.00034848,30]
[423167985,1779900647000,-283.91208686,0.00035,120]
[423167979,1779900647000,-4370.74904221,0.00035,7]
[423167970,1779900647000,-1105.0,0.00034848,30]
[423167968,1779900647000,-281.0,0.00034848,30]
[423167981,1779900647000,-378.38672515,0.00035,120]
[423167975,1779900647000,-685.19,0.00034931,5]
[423167977,1779900647000,-1055.29163792,0.00035,120]
[423167965,1779900647000,-365.0,0.00034848,30]
[423167983,1779900647000,-567.58008773,0.00035,120]
[423167963,1779900647000,-156.0,0.00034848,30]
[423167987,1779900647000,-185.88478102,0.00035,120]
[423168024,1779900647000,-500.0,0.0003548,120]
[423167996,1779900647000,-161.27,0.0003516,30]
[423167990,1779900647000,-205.77743576,0.00035,120]
[423167994,1779900647000,-282.02695724,0.00035,120]
[423167998,1779900647000,-501.0,0.00035169,12]
[423168008,1779900647000,-500.0,0.00035442,2]
[423168000,1779900647000,-21751.10302791,0.00035307,2]
[423168011,1779900647000,-244.82538177,0.00035442,2]
[423168002,1779900647000,-468.14,0.00035308,2]
[423168004,1779900647000,-500.0,0.00035347,29]
[423168006,1779900647000,-500.0,0.00035442,2]
[423168026,1779900647000,-8791.28614351,0.00035527,2]
[423167961,1779900647000,-168.0,0.00034848,30]
[423167992,1779900647000,-207.28396013,0.00035,120]
[423167957,1779900647000,-159.0,0.00034803,30]
[423167897,1779900647000,-167.16450666,0.00034186,2]
[423167959,1779900647000,-153.0,0.00034848,30]
[423167901,1779900647000,-200.0,0.00034247,90]
[423167903,1779900647000,-200.0,0.00034247,90]
[423168032,1779900647000,-160.0,0.00035616,14]
[423167906,1779900647000,-200.0,0.00034247,90]
[423167910,1779900647000,-200.0,0.00034247,90]
[423167912,1779900647000,-200.0,0.00034247,90]
[423167908,1779900647000,-200.0,0.00034247,90]
[423167933,1779900647000,-2170.59,0.00034258,30]
[423167916,1779900647000,-200.0,0.00034247,90]
[423167927,1779900647000,-200.0,0.00034247,90]
[423167931,1779900647000,-2000.0,0.00034247,30]
[423167929,1779900647000,-249.93242,0.00034247,90]
[423167914,1779900647000,-200.0,0.00034247,90]
[423167935,1779900647000,-500.0,0.00034318,27]
[423167923,1779900647000,-200.0,0.00034247,90]
[423167925,1779900647000,-200.0,0.00034247,90]
[423167921,1779900647000,-200.0,0.00034247,90]
[423167937,1779900647000,-500.0,0.00034318,27]
[423167919,1779900647000,-200.0,0.00034247,90]
[423167941,1779900647000,-5947.24,0.000344,14]
[423167939,1779900647000,-500.0,0.00034318,27]
[423167943,1779900647000,-150.0,0.00034521,2]
[423167945,1779900647000,-159.54,0.00034524,2]
[423167949,1779900647000,-468.14,0.00034729,2]
[423167951,1779900647000,-1500.0,0.00034795,2]
[423167947,1779900647000,-503.97120438,0.00034719,28]
[423167953,1779900647000,-364.0,0.00034802,30]
[423167955,1779900647000,-290.0,0.00034803,30]
[423168018,1779900647000,-150.0,0.00035442,2]
[423167899,1779900647000,-200.0,0.00034247,90]
[423168020,1779900647000,-150.0,0.00035442,2]
[423168093,1779900647000,-500.0,0.00035616,30]
[423168095,1779900647000,-500.0,0.00035616,30]
[423168097,1779900647000,-500.0,0.00035616,30]
[423168100,1779900647000,-500.0,0.00035616,30]
[423168092,1779900647000,-500.0,0.00035616,30]
[423168102,1779900647000,-500.0,0.00035616,30]
[423168112,1779900647000,-500.0,0.00035616,30]
[423168104,1779900647000,-500.0,0.00035616,30]
[423168108,1779900647000,-500.0,0.00035616,30]
[423168110,1779900647000,-500.0,0.00035616,30]
[423168106,1779900647000,-500.0,0.00035616,30]
[423168114,1779900647000,-500.0,0.00035616,30]
[423168088,1779900647000,-500.0,0.00035616,30]
[423168116,1779900647000,-500.0,0.00035616,30]
[423168118,1779900647000,-500.0,0.00035616,30]
[423168127,1779900647000,-500.0,0.00035616,30]
[423168129,1779900647000,-500.0,0.00035616,30]
[423168124,1779900647000,-500.0,0.00035616,30]
[423168122,1779900647000,-500.0,0.00035616,30]
[423168131,1779900647000,-500.0,0.00035616,30]
[423168133,1779900647000,-500.0,0.00035616,30]
[423168137,1779900647000,-500.0,0.00035616,30]
[423168135,1779900647000,-500.0,0.00035616,30]
[423168141,1779900647000,-500.0,0.00035616,30]
[423168139,1779900647000,-500.0,0.00035616,30]
[423168143,1779900647000,-500.0,0.00035616,30]
[423168120,1779900647000,-500.0,0.00035616,30]
[423168090,1779900647000,-500.0,0.00035616,30]
[423168142,1779900647000,-500.0,0.00035616,30]
[423168076,1779900647000,-500.0,0.00035616,30]
[423168086,1779900647000,-500.0,0.00035616,30]
[423168013,1779900647000,-150.0,0.00035442,2]
[423168028,1779900647000,-8791.28614351,0.00035563,2]
[423168022,1779900647000,-152.7915746,0.00035442,2]
[423168016,1779900647000,-150.0,0.00035442,2]
[423168034,1779900647000,-1000.0,0.00035616,30]
[423168036,1779900647000,-1000.0,0.00035616,30]
[423168038,1779900647000,-1000.0,0.00035616,30]
[423168051,1779900647000,-500.0,0.00035616,30]
[423168040,1779900647000,-1000.0,0.00035616,30]
[423168060,1779900647000,-500.0,0.00035616,30]
[423168058,1779900647000,-500.0,0.00035616,30]
[423168049,1779900647000,-500.0,0.00035616,30]
[423168045,1779900647000,-376.03,0.00035616,60]
[423168030,1779900647000,-8791.28614351,0.00035571,2]
[423168055,1779900647000,-500.0,0.00035616,30]
[423168064,1779900647000,-500.0,0.00035616,30]
[423168084,1779900647000,-500.0,0.00035616,30]
[423168082,1779900647000,-500.0,0.00035616,30]
[423168080,1779900647000,-500.0,0.00035616,30]
[423168071,1779900647000,-500.0,0.00035616,30]
[423168069,1779900647000,-500.0,0.00035616,30]
[423168073,1779900647000,-500.0,0.00035616,30]
[423168067,1779900647000,-500.0,0.00035616,30]
[423168062,1779900647000,-500.0,0.00035616,30]
[423168042,1779900647000,-1102.11452881,0.00035616,30]
[423168053,1779900647000,-500.0,0.00035616,30]
[423168047,1779900647000,-500.0,0.00035616,30]
[423168078,1779900647000,-500.0,0.00035616,30]
[423168229,1779900648000,-528.48327171,0.00035626,2]
[423168219,1779900648000,-300.0,0.00035626,2]
[423168221,1779900648000,-605.31118564,0.00035626,2]
[423168216,1779900648000,-300.0,0.00035626,2]
[423168210,1779900648000,-300.0,0.00035626,2]
[423168215,1779900648000,-493.38669858,0.00035626,2]
[423168209,1779900648000,-565.10477642,0.00035626,2]
[423168195,1779900648000,-1000.0,0.00035616,10]
[423168205,1779900648000,-1096.2926835,0.00035626,2]
[423168213,1779900648000,-300.0,0.00035626,2]
[423168223,1779900648000,-300.0,0.00035626,2]
[423168238,1779900648000,-300.0,0.00035626,2]
[423168225,1779900648000,-300.0,0.00035626,2]
[423168227,1779900648000,-300.0,0.00035626,2]
[423168233,1779900648000,-727.07827244,0.00035626,2]
[423168236,1779900648000,-302.21937029,0.00035626,2]
[423168193,1779900648000,-1000.0,0.00035616,10]
[423168240,1779900648000,-300.99795142,0.00035626,2]
[423168244,1779900648000,-300.0,0.00035626,2]
[423168242,1779900648000,-300.0,0.00035626,2]
[423168256,1779900648000,-527.62572404,0.00035626,2]
[423168246,1779900648000,-300.0,0.00035626,2]
[423168248,1779900648000,-300.0,0.00035626,2]
[423168254,1779900648000,-344.45437934,0.00035626,2]
[423168231,1779900648000,-1068.40163352,0.00035626,2]
[423168191,1779900648000,-1000.0,0.00035616,10]
[423168187,1779900648000,-1000.0,0.00035616,10]
[423168206,1779900648000,-300.0,0.00035626,2]
[423168252,1779900648000,-387.03054415,0.00035626,2]
[423168146,1779900648000,-500.0,0.00035616,30]
[423168152,1779900648000,-228.9,0.00035616,120]
[423168160,1779900648000,-1000.0,0.00035616,10]
[423168145,1779900648000,-500.0,0.00035616,30]
[423168144,1779900648000,-500.0,0.00035616,30]
[423168148,1779900648000,-500.0,0.00035616,30]
[423168154,1779900648000,-303.80851446,0.00035616,7]
[423168150,1779900648000,-319.1543372,0.00035616,30]
[423168156,1779900648000,-1000.0,0.00035616,10]
[423168158,1779900648000,-1000.0,0.00035616,10]
[423168162,1779900648000,-1000.0,0.00035616,10]
[423168164,1779900648000,-1000.0,0.00035616,10]
[423168177,1779900648000,-1000.0,0.00035616,10]
[423168175,1779900648000,-1000.0,0.00035616,10]
[423168173,1779900648000,-1000.0,0.00035616,10]
[423168179,1779900648000,-1000.0,0.00035616,10]
[423168166,1779900648000,-1000.0,0.00035616,10]
[423168171,1779900648000,-1000.0,0.00035616,10]
[423168181,1779900648000,-1000.0,0.00035616,10]
[423168184,1779900648000,-1000.0,0.00035616,10]
[423168197,1779900648000,-510.0,0.00035616,10]
[423168199,1779900648000,-281.31,0.00035616,2]
[423168201,1779900648000,-159.54,0.00035624,30]
[423168203,1779900648000,-300.0,0.00035626,2]
[423168189,1779900648000,-1000.0,0.00035616,10]
[423168168,1779900648000,-1000.0,0.00035616,10]
[423168250,1779900648000,-1263.96825586,0.00035626,2]
[423168258,1779900648000,-300.0,0.00035626,2]
[423168321,1779900648000,-310.28230408,0.00035626,2]
[423168317,1779900648000,-300.0,0.00035626,2]
[423168327,1779900648000,-1096.2926835,0.00035626,2]
[423168325,1779900648000,-300.0,0.00035626,2]
[423168333,1779900648000,-499.37863486,0.00035626,2]
[423168331,1779900648000,-300.0,0.00035626,2]
[423168337,1779900648000,-300.0,0.00035626,2]
[423168335,1779900648000,-300.0,0.00035626,2]
[423168339,1779900648000,-300.0,0.00035626,2]
[423168349,1779900648000,-300.0,0.00035626,2]
[423168351,1779900648000,-300.0,0.00035626,2]
[423168313,1779900648000,-300.0,0.00035626,2]
[423168353,1779900648000,-605.31118564,0.00035626,2]
[423168347,1779900648000,-300.0,0.00035626,2]
[423168345,1779900648000,-493.38669858,0.00035626,2]
[423168357,1779900648000,-300.0,0.00035626,2]
[423168341,1779900648000,-300.0,0.00035626,2]
[423168363,1779900648000,-1068.40163352,0.00035626,2]
[423168359,1779900648000,-300.0,0.00035626,2]
[423168361,1779900648000,-528.48327171,0.00035626,2]
[423168365,1779900648000,-534.65434383,0.00035626,2]
[423168367,1779900648000,-727.07827244,0.00035626,2]
[423168369,1779900648000,-302.21937029,0.00035626,2]
[423168260,1779900648000,-300.76542561,0.00035626,2]
[423168343,1779900648000,-300.0,0.00035626,2]
[423168329,1779900648000,-300.0,0.00035626,2]
[423168355,1779900648000,-300.0,0.00035626,2]
[423168323,1779900648000,-300.0,0.00035626,2]
[423168262,1779900648000,-300.0,0.00035626,2]
[423168319,1779900648000,-484.76763572,0.00035626,2]
[423168264,1779900648000,-865.6208675,0.00035626,2]
[423168271,1779900648000,-300.0,0.00035626,2]
[423168268,1779900648000,-1800.09388364,0.00035626,2]
[423168266,1779900648000,-950.32029804,0.00035626,2]
[423168283,1779900648000,-300.0,0.00035626,2]
[423168279,1779900648000,-300.0,0.00035626,2]
[423168285,1779900648000,-300.0,0.00035626,2]
[423168277,1779900648000,-406.47561395,0.00035626,2]
[423168275,1779900648000,-310.02493426,0.00035626,2]
[423168281,1779900648000,-1634.44392223,0.00035626,2]
[423168287,1779900648000,-300.0,0.00035626,2]
[423168273,1779900648000,-1148.83589152,0.00035626,2]
[423168289,1779900648000,-594.79850986,0.00035626,2]
[423168314,1779900648000,-300.0,0.00035626,2]
[423168308,1779900648000,-300.0,0.00035626,2]
[423168304,1779900648000,-452.52893397,0.00035626,2]
[423168293,1779900648000,-300.0,0.00035626,2]
[423168300,1779900648000,-578.28315025,0.00035626,2]
[423168310,1779900648000,-300.0,0.00035626,2]
[423168306,1779900648000,-546.07975602,0.00035626,2]
[423168297,1779900648000,-300.0,0.00035626,2]
[423168302,1779900648000,-300.50973823,0.00035626,2]
[423168291,1779900648000,-300.0,0.00035626,2]
[423168295,1779900648000,-464.48677942,0.00035626,2]
[423168458,1779900649000,-300.0,0.00035626,2]
[423168471,1779900649000,-161.27,0.0003573,80]
[423168460,1779900649000,-300.0,0.00035626,2]
[423168452,1779900649000,-578.28315025,0.00035626,2]
[423168454,1779900649000,-300.0,0.00035626,2]
[423168469,1779900649000,-293.646211,0.0003573,5]
[423168474,1779900649000,-8791.28614351,0.00035732,2]
[423168468,1779900649000,-250.0,0.00035726,7]
[423168464,1779900649000,-300.0,0.00035626,2]
[423168462,1779900649000,-300.0,0.00035626,2]
[423168456,1779900649000,-452.52893397,0.00035626,2]
[423168466,1779900649000,-466.72874829,0.00035626,2]
[423168476,1779900649000,-5947.24,0.000358,14]
[423168494,1779900649000,-250.0,0.00035848,30]
[423168481,1779900649000,-159.0,0.00035803,30]
[423168483,1779900649000,-184.7831,0.00035837,2]
[423168480,1779900649000,-290.0,0.00035803,30]
[423168485,1779900649000,-153.0,0.00035848,30]
[423168498,1779900649000,-1105.0,0.00035848,30]
[423168492,1779900649000,-365.0,0.00035848,30]
[423168488,1779900649000,-168.0,0.00035848,30]
[423168504,1779900649000,-468.14,0.00035886,2]
[423168496,1779900649000,-281.0,0.00035848,30]
[423168490,1779900649000,-156.0,0.00035848,30]
[423168502,1779900649000,-284.30824358,0.00035884,120]
[423168448,1779900649000,-464.48677942,0.00035626,2]
[423168478,1779900649000,-364.0,0.00035802,30]
[423168437,1779900649000,-300.0,0.00035626,2]
[423168389,1779900649000,-300.99795142,0.00035626,2]
[423168433,1779900649000,-1634.44392223,0.00035626,2]
[423168506,1779900649000,-344.36,0.000359,7]
[423168386,1779900649000,-300.0,0.00035626,2]
[423168398,1779900649000,-300.0,0.00035626,2]
[423168391,1779900649000,-300.0,0.00035626,2]
[423168400,1779900649000,-300.0,0.00035626,2]
[423168396,1779900649000,-300.0,0.00035626,2]
[423168393,1779900649000,-300.0,0.00035626,2]
[423168413,1779900649000,-300.76542561,0.00035626,2]
[423168402,1779900649000,-1263.96825586,0.00035626,2]
[423168415,1779900649000,-300.0,0.00035626,2]
[423168404,1779900649000,-387.03054415,0.00035626,2]
[423168417,1779900649000,-865.6208675,0.00035626,2]
[423168408,1779900649000,-527.62572404,0.00035626,2]
[423168419,1779900649000,-950.32029804,0.00035626,2]
[423168406,1779900649000,-344.45437934,0.00035626,2]
[423168411,1779900649000,-300.0,0.00035626,2]
[423168421,1779900649000,-1800.09388364,0.00035626,2]
[423168424,1779900649000,-300.0,0.00035626,2]
[423168426,1779900649000,-1148.83589152,0.00035626,2]
[423168428,1779900649000,-310.02493426,0.00035626,2]
[423168440,1779900649000,-300.0,0.00035626,2]
[423168444,1779900649000,-300.0,0.00035626,2]
[423168442,1779900649000,-594.79850986,0.00035626,2]
[423168446,1779900649000,-300.0,0.00035626,2]
[423168430,1779900649000,-300.0,0.00035626,2]
[423168450,1779900649000,-300.0,0.00035626,2]
[423168431,1779900649000,-300.0,0.00035626,2]
[423168435,1779900649000,-300.0,0.00035626,2]
[423168500,1779900649000,-284.30824358,0.00035884,120]
[423168384,1779900649000,-300.0,0.00035626,2]
[423168518,1779900649000,-283.91208686,0.00036,120]
[423168576,1779900649000,-2000.0,0.000371,7]
[423168566,1779900649000,-161.27,0.0003688,120]
[423168578,1779900649000,-177.01213778,0.000374,30]
[423168582,1779900649000,-580.80658839,0.000374,30]
[423168584,1779900649000,-501.0,0.00037411,15]
[423168586,1779900649000,-157.90300786,0.00037413,2]
[423168588,1779900649000,-376.03,0.00037443,60]
[423168597,1779900649000,-200.0,0.00037563,6]
[423168590,1779900649000,-150.0,0.00037449,2]
[423168594,1779900649000,-200.0,0.00037562,6]
[423168602,1779900649000,-152161.0,0.000376,30]
[423168600,1779900649000,-200.0,0.00037566,6]
[423168599,1779900649000,-200.0,0.00037565,6]
[423168603,1779900649000,-237.06,0.00037604,30]
[423168592,1779900649000,-161.28,0.0003745,60]
[423168601,1779900649000,-200.0,0.00037567,6]
[423168604,1779900649000,-199.97,0.00037624,120]
[423168605,1779900649000,-199.97,0.00037624,120]
[423168610,1779900649000,-157.90300786,0.00037687,2]
[423168617,1779900649000,-355.67461094,0.00037767,14]
[423168612,1779900649000,-201.4,0.000377,15]
[423168608,1779900649000,-181.6629453,0.00037625,120]
[423168614,1779900649000,-479.53463681,0.00037747,120]
[423168616,1779900649000,-479.53463681,0.00037747,120]
[423168620,1779900649000,-67112.12176668,0.00037769,2]
[423168622,1779900649000,-2170.59,0.00037823,30]
[423168508,1779900649000,-150.0,0.00035951,2]
[423168568,1779900649000,-5947.24,0.000369,14]
[423168574,1779900649000,-610106.0,0.00037,2]
[423168624,1779900649000,-159.54,0.00037824,2]
[423168564,1779900649000,-350.0,0.0003684,15]
[423168580,1779900649000,-580.8065884,0.000374,30]
[423168520,1779900649000,-185.88478102,0.00036,120]
[423168522,1779900649000,-207.28396013,0.00036,120]
[423168525,1779900649000,-205.77743576,0.00036,120]
[423168512,1779900649000,-1055.29163792,0.00036,120]
[423168526,1779900649000,-282.02695724,0.00036,120]
[423168516,1779900649000,-567.58008773,0.00036,120]
[423168514,1779900649000,-378.38672515,0.00036,120]
[423168529,1779900649000,-2170.59,0.0003604,30]
[423168531,1779900649000,-507.26,0.00036079,120]
[423168534,1779900649000,-150.0,0.00036247,2]
[423168536,1779900649000,-501.0,0.0003629,13]
[423168533,1779900649000,-1033.2,0.00036153,30]
[423168543,1779900649000,-448.50724798,0.00036408,34]
[423168510,1779900649000,-245.24347086,0.00035951,2]
[423168551,1779900649000,-247.49,0.00036671,30]
[423168538,1779900649000,-161.27,0.000363,110]
[423168563,1779900649000,-229.06107946,0.00036833,120]
[423168561,1779900649000,-396.33589645,0.00036833,120]
[423168559,1779900649000,-258.63753108,0.00036775,2]
[423168555,1779900649000,-159.54,0.00036724,7]
[423168570,1779900649000,-2000.0,0.000369,7]
[423168553,1779900649000,-150.0,0.000367,30]
[423168547,1779900649000,-2841.95,0.00036505,120]
[423168557,1779900649000,-140677.6052,0.00036765,30]
[423168541,1779900649000,-152161.0,0.000364,30]
[423168573,1779900649000,-272.87,0.00036917,30]
[423168549,1779900649000,-8791.28614351,0.00036546,2]
[423168545,1779900649000,-468.16857126,0.00036465,2]
[423168705,1779900650000,-3548.0,0.00038283,2]
[423168692,1779900650000,-150.0,0.00038137,60]
[423168694,1779900650000,-1589.0,0.00038149,11]
[423168686,1779900650000,-1595.0,0.00038112,11]
[423168698,1779900650000,-157.90300786,0.00038235,2]
[423168688,1779900650000,-350.0,0.00038124,2]
[423168684,1779900650000,-344.36,0.000381,7]
[423168702,1779900650000,-1356.0,0.00038283,2]
[423168700,1779900650000,-165.037,0.00038283,2]
[423168679,1779900650000,-157.85,0.00038035,120]
[423168696,1779900650000,-163.0,0.00038149,11]
[423168720,1779900650000,-11610.85,0.000383,2]
[423168709,1779900650000,-1272.0,0.00038283,2]
[423168707,1779900650000,-525.0,0.00038283,2]
[423168712,1779900650000,-1236.947,0.00038283,2]
[423168713,1779900650000,-418.0,0.00038283,2]
[423168716,1779900650000,-3637.0,0.00038283,2]
[423168718,1779900650000,-2237.0,0.00038291,11]
[423168722,1779900650000,-2317.0,0.00038328,11]
[423168724,1779900650000,-819.98,0.00038356,30]
[423168727,1779900650000,-231.23998198,0.00038356,2]
[423168726,1779900650000,-200.0,0.00038356,30]
[423168681,1779900650000,-266.44141423,0.000381,4]
[423168732,1779900650000,-1589.0,0.00038365,11]
[423168703,1779900650000,-1014.616,0.00038283,2]
[423168690,1779900650000,-1033.2,0.00038125,30]
[423168649,1779900650000,-48688.0,0.00038,2]
[423168674,1779900650000,-158.57,0.00038032,13]
[423168730,1779900650000,-1549.0,0.00038356,30]
[423168626,1779900650000,-500.0,0.00037839,60]
[423168627,1779900650000,-700.0,0.00037839,60]
[423168631,1779900650000,-2273.56,0.00037872,120]
[423168629,1779900650000,-500.0,0.00037863,2]
[423168633,1779900650000,-500.0,0.00037877,120]
[423168635,1779900650000,-500.0,0.00037877,120]
[423168637,1779900650000,-350.0,0.0003788,2]
[423168639,1779900650000,-200.0,0.000379,13]
[423168641,1779900650000,-1589.0,0.00037904,11]
[423168647,1779900650000,-175.06,0.00038,30]
[423168651,1779900650000,-1971772.0,0.00038,2]
[423168643,1779900650000,-157.90300786,0.00037961,2]
[423168645,1779900650000,-2317.0,0.00037969,11]
[423168653,1779900650000,-151.0,0.00038,120]
[423168659,1779900650000,-152.0,0.00038,120]
[423168657,1779900650000,-300.1611,0.00038,60]
[423168663,1779900650000,-19679.0,0.00038,2]
[423168673,1779900650000,-350.0,0.00038025,2]
[423168664,1779900650000,-480528.0,0.00038,2]
[423168669,1779900650000,-2317.0,0.00038008,11]
[423168667,1779900650000,-250.0,0.00038,7]
[423168655,1779900650000,-5947.24,0.00038,14]
[423168661,1779900650000,-2000.0,0.00038,7]
[423168677,1779900650000,-158.58,0.00038032,13]
[423168671,1779900650000,-161.28,0.0003802,86]
[423168734,1779900650000,-11610.85,0.000384,2]
[423168740,1779900650000,-2317.0,0.00038464,11]
[423168828,1779900650000,-500.0,0.00038757,7]
[423168799,1779900650000,-500.0,0.00038757,7]
[423168801,1779900650000,-500.0,0.00038757,7]
[423168803,1779900650000,-500.0,0.00038757,7]
[423168805,1779900650000,-500.0,0.00038757,7]
[423168809,1779900650000,-500.0,0.00038757,7]
[423168816,1779900650000,-500.0,0.00038757,7]
[423168808,1779900650000,-500.0,0.00038757,7]
[423168820,1779900650000,-500.0,0.00038757,7]
[423168818,1779900650000,-500.0,0.00038757,7]
[423168812,1779900650000,-500.0,0.00038757,7]
[423168822,1779900650000,-500.0,0.00038757,7]
[423168826,1779900650000,-500.0,0.00038757,7]
[423168824,1779900650000,-500.0,0.00038757,7]
[423168830,1779900650000,-500.0,0.00038757,7]
[423168832,1779900650000,-500.0,0.00038757,7]
[423168834,1779900650000,-500.0,0.00038757,7]
[423168836,1779900650000,-500.0,0.00038757,7]
[423168838,1779900650000,-500.0,0.00038757,7]
[423168849,1779900650000,-500.0,0.00038757,7]
[423168851,1779900650000,-500.0,0.00038757,7]
[423168860,1779900650000,-500.0,0.00038757,7]
[423168855,1779900650000,-500.0,0.00038757,7]
[423168853,1779900650000,-500.0,0.00038757,7]
[423168858,1779900650000,-500.0,0.00038757,7]
[423168738,1779900650000,-798.08383,0.000384,10]
[423168782,1779900650000,-200.0,0.000387,16]
[423168784,1779900650000,-388.09626048,0.00038705,2]
[423168814,1779900650000,-500.0,0.00038757,7]
[423168786,1779900650000,-1589.0,0.00038752,11]
[423168744,1779900650000,-157.90300786,0.00038509,2]
[423168736,1779900650000,-151.0,0.000384,120]
[423168748,1779900650000,-8408.69033204,0.00038549,7]
[423168750,1779900650000,-17872.66415358,0.00038564,2]
[423168752,1779900650000,-161.28,0.0003859,105]
[423168742,1779900650000,-150.0,0.00038465,2]
[423168746,1779900650000,-501.0,0.00038531,16]
[423168756,1779900650000,-11610.85,0.000386,2]
[423168788,1779900650000,-590.39,0.00038757,7]
[423168764,1779900650000,-434.23603839,0.00038605,10]
[423168754,1779900650000,-11610.85,0.000386,2]
[423168762,1779900650000,-434.23603839,0.00038605,10]
[423168758,1779900650000,-434.23603849,0.00038605,10]
[423168768,1779900650000,-434.23603839,0.00038605,10]
[423168759,1779900650000,-434.23603839,0.00038605,10]
[423168766,1779900650000,-434.23603839,0.00038605,10]
[423168791,1779900650000,-617.07,0.00038757,7]
[423168793,1779900650000,-500.0,0.00038757,7]
[423168795,1779900650000,-500.0,0.00038757,7]
[423168790,1779900650000,-500.0,0.00038757,7]
[423168780,1779900650000,-2317.0,0.00038684,11]
[423168797,1779900650000,-500.0,0.00038757,7]
[423168776,1779900650000,-434.23603839,0.00038605,10]
[423168774,1779900650000,-434.23603839,0.00038605,10]
[423168772,1779900650000,-434.23603839,0.00038605,10]
[423168770,1779900650000,-434.23603839,0.00038605,10]
[423168778,1779900650000,-700.0,0.00038661,60]
[423168963,1779900651000,-300.0,0.00038904,120]
[423168961,1779900651000,-300.0,0.00038904,120]
[423168959,1779900651000,-300.0,0.00038904,120]
[423168948,1779900651000,-300.0,0.00038904,120]
[423168944,1779900651000,-300.0,0.00038904,120]
[423168946,1779900651000,-300.0,0.00038904,120]
[423168919,1779900651000,-1000.0,0.00038882,120]
[423168942,1779900651000,-300.0,0.00038904,120]
[423168923,1779900651000,-151.0,0.000389,120]
[423168921,1779900651000,-272.96,0.00038889,30]
[423168939,1779900651000,-300.0,0.00038904,120]
[423168927,1779900651000,-49294.0,0.000389,30]
[423168925,1779900651000,-183.79221993,0.000389,120]
[423168965,1779900651000,-300.0,0.00038904,120]
[423168978,1779900651000,-300.0,0.00038904,120]
[423168952,1779900651000,-300.0,0.00038904,120]
[423168957,1779900651000,-300.0,0.00038904,120]
[423168954,1779900651000,-300.0,0.00038904,120]
[423168968,1779900651000,-300.0,0.00038904,120]
[423168955,1779900651000,-300.0,0.00038904,120]
[423168970,1779900651000,-300.0,0.00038904,120]
[423168972,1779900651000,-300.0,0.00038904,120]
[423168974,1779900651000,-300.0,0.00038904,120]
[423168984,1779900651000,-300.0,0.00038904,120]
[423168985,1779900651000,-300.0,0.00038904,120]
[423168987,1779900651000,-300.0,0.00038904,120]
[423168976,1779900651000,-300.0,0.00038904,120]
[423168937,1779900651000,-300.0,0.00038904,120]
[423168950,1779900651000,-300.0,0.00038904,120]
[423168935,1779900651000,-300.0,0.00038904,120]
[423168868,1779900651000,-500.0,0.00038757,7]